Cogmind - Beta 17 @@@ ROGUE MODE // 2026.07.02 @ 12:40:32 Player: stevie364 Result: Destroyed by NY-FTV(p) with EM Pulse Gun Performance ------------- Evolutions (3) 1500 Regions Visited (9) 1800 Robots Destroyed (75) 375 Value Destroyed (1521) 1521 Prototype IDs (30) 600 Alien Tech Used (0) 0 Bonus (674) 674 TOTAL SCORE: 6470 Bonus ------- Follower Combat Kills 374 Aligned with FarCom 300 Cogmind --------- Core Integrity 0/700 Matter 285/300 Energy 73/100 System Corruption 1% Temperature Cool (0) Movement Core (50) Location -7/Scraptown Parts ------- > --- POWER (1) -------- (None) > --- PROPULSION (5) --- (None) > --- UTILITY (5) ------ Improved Utility Shielding Hacking Suite Tech Extrapolator > --- WEAPON (2) ------- (None) > --- INVENTORY (5) ---- Advanced Visual Processing Unit Improved Sensor Array Seismic Detector Hacking Suite Thief Drone Bay (3/3) Peak State ------------ > --- POWER ------------ Light Nuclear Core > --- PROPULSION ------- Improved Flight Unit Improved Cesium-ion Thruster Improved Cesium-ion Thruster Improved Cesium-ion Thruster Cooled VTOL Module > --- UTILITY ---------- Small Storage Unit Machine Analyzer Improved Signal Interpreter Hacking Suite Drone Bay > --- WEAPON ----------- Enhanced Autogun Longsword +1 > --- INVENTORY -------- Seismic Detector Transmission Jammer Improved Utility Shielding Improved Light Armor Plating Hacking Suite Trap Reconfigurator Thief Drone Bay Mini Grenade Launcher [Rating: 56] Favorites ----------- Power Heavy Ion Engine Engine Heavy Ion Engine Power Core Light Nuclear Core Propulsion Light Treads Treads Light Treads Leg Light Armored Exoskeleton Flight Unit Improved Flight Unit Utility Seismic Detector Device Seismic Detector Storage Large Storage Unit Processor Machine Analyzer Hackware Hacking Suite Protection Light Armor Plating Weapon Enhanced Autogun Energy Cannon Particle Cannon Ballistic Gun Enhanced Autogun Ballistic Cannon Light Cannon Launcher Mini Grenade Launcher Slashing Weapon Longsword +1 Build | -11 -10 -10 -10 -9 -8 -7 -7 -7 -7 ------- Run | Yrd Mat Min Exi Min Mat Fac Sto Rec Scr Slots Evolved 6 | . . . . . 4 2 . . . Power . | . . . . . . . . . . Propulsion 3 | . . . . . 2 1 . . . Utility 3 | . . . . . 2 1 . . . Weapon . | . . . . . . . . . . Parts Attached 64 | 7 6 4 . . 34 5 5 . 3 Power 5 | 1 1 1 . . 2 . . . . Engine 4 | 1 1 1 . . 1 . . . . Core 1 | . . . . . 1 . . . . Reactor . | . . . . . . . . . . Propulsion 29 | 2 . 2 . . 20 1 4 . . Treads 19 | 2 . 2 . . 15 . . . . Leg 1 | . . . . . . . 1 . . Wheel . | . . . . . . . . . . Hover . | . . . . . . . . . . Flight 9 | . . . . . 5 1 3 . . Utility 18 | 2 2 1 . . 5 4 1 . 3 Device 7 | 1 . 1 . . 1 2 1 . 1 Storage 3 | 1 1 . . . 1 . . . . Processor 3 | . . . . . 1 1 . . 1 Hackware 1 | . . . . . . 1 . . . Protection 4 | . 1 . . . 2 . . . 1 Artifact . | . . . . . . . . . . Weapon 12 | 2 3 . . . 7 . . . . Energy Gun . | . . . . . . . . . . Energy Cannon 2 | . 1 . . . 1 . . . . Ballistic Gun 6 | 2 1 . . . 3 . . . . Ballistic Cannon 2 | . 1 . . . 1 . . . . Launcher 1 | . . . . . 1 . . . . Special Weapon . | . . . . . . . . . . Impact Weapon . | . . . . . . . . . . Slashing Weapon 1 | . . . . . 1 . . . . Piercing Weapon . | . . . . . . . . . . Special Melee Weapon . | . . . . . . . . . . Unidentified Prototypes 7 | . . 1 . . 4 1 1 . . Parts Lost 12 | . 1 . . . . . . . 11 Power 1 | . . . . . . . . . 1 Propulsion 5 | . . . . . . . . . 5 Utility 2 | . . . . . . . . . 2 Weapon 4 | . 1 . . . . . . . 3 Highest Loss Streak 11 | . 1 . . . . . . . 11 To Critical Strikes . | . . . . . . . . . . Average Backups 11 | 1 7 15 15 15 14 7 8 8 7 Power . | . 1 1 1 . . . . . . Propulsion 3 | . 2 5 5 5 4 . . . . Utility 4 | . 1 3 4 5 5 6 7 7 6 Weapon 2 | . 2 5 4 4 3 1 1 1 . Tool/Special . | . . . . . . . . . . Unused Backups 15 | . 2 1 1 1 5 1 1 . 3 Power 1 | . . . . 1 . . . . . Propulsion 3 | . 1 . . . 2 . . . . Utility 7 | . . 1 . . 1 1 1 . 3 Weapon 4 | . 1 . 1 . 2 . . . . Tool/Special . | . . . . . . . . . . Average Slot Usage (%) 99 | . 99 100 100 100 98 99 99 100 92 Engine 10 | . 14 14 14 14 8 . . . . Core 1 | . . . . . . 7 6 7 6 Treads 25 | . 28 28 28 28 32 . . . . Flight 6 | . . . . . 2 38 38 38 35 Device 14 | . 13 14 14 14 17 7 7 7 6 Storage 11 | . 14 14 14 14 9 7 7 7 7 Processor 2 | . . . . . . 14 15 15 13 Hackware 1 | . . . . . . 6 7 7 7 Protection 3 | . . . . . 8 . . . . Energy Cannon 5 | . 1 14 14 14 3 . . . . Ballistic Gun 10 | . 25 . . . 9 7 7 7 5 Ballistic Cannon 5 | . 1 14 14 14 3 . . . . Slashing Weapon 1 | . . . . . . 6 7 7 6 Peak Build Rating 56 | 7 9 15 16 17 37 49 56 54 55 Average Rating 21 | 5 7 10 14 16 25 45 53 54 50 On Entrance 25 | . 7 9 14 16 17 35 48 54 54 Avg Prop Armor Cover (%) 1 | . . . . . 1 . 1 2 1 Naked Turns . | . . . . . . . . . . Heaviest Build 42 | 14 31 37 37 37 42 20 22 17 19 Greatest Support 89 | 40 40 40 40 40 89 26 30 23 23 Greatest Overweight (x) 1 | . . . . . 1 . . . . Average Overweight (x) . | . . . . . . . . . . Largest Inventory Capacity 15 | 8 15 15 15 15 15 8 8 8 8 Average Capacity 13 | 7 14 15 15 15 14 8 8 8 7 Most Carried 15 | 2 15 15 15 15 15 8 8 8 8 Average Carried 11 | 1 7 14 14 14 14 7 8 8 7 Final Capacity 15 | 8 15 15 15 15 8 8 8 8 5 Final Carried 15 | 2 15 15 15 15 8 8 8 8 5 Class Distribution -------------------- 55% | Mutant 30% | Scavenger-Mutant 9% | Scout Dominant Class ---------------- Mutant | -10/Materials Mutant | -10/Mines Mutant | -10/Exiles Mutant | -9/Mines Scavenger-Mutant | -8/Materials Scout | -7/Factory Scout | -7/Storage Scout | -7/Recycling Scout | -7/Scraptown Resources | -11 -10 -10 -10 -9 -8 -7 -7 -7 -7 ----------- Run | Yrd Mat Min Exi Min Mat Fac Sto Rec Scr Matter Collected 2172 | 286 435 154 . 12 856 314 90 10 15 Remotely . | . . . . . . . . . . Salvage Created 3384 | 96 968 129 . . 1504 323 95 269 . Parts 154 | 3 56 8 . . 63 12 7 5 . Haulers Intercepted 10 | . 2 . . . 5 1 2 . . Recyclers Shooed 3 | . 1 1 . . 1 . . . . Parts Field Recycled . | . . . . . . . . . . Retrieved Matter . | . . . . . . . . . . Parts Self-Destructed . | . . . . . . . . . . Prevented . | . . . . . . . . . . Parts Restored . | . . . . . . . . . . Kills | -11 -10 -10 -10 -9 -8 -7 -7 -7 -7 ------- Run | Yrd Mat Min Exi Min Mat Fac Sto Rec Scr Combat Hostiles Destroyed 39 | . 18 3 . . 18 . . . . Guns 27 | . 18 . . . 9 . . . . Cannons 11 | . . 3 . . 8 . . . . AOE 1 | . . . . . 1 . . . . Classes Destroyed 12 | 2 6 . . . 4 . . . . Worker 4 | . 1 . . . 2 1 . . . Builder 1 | . 1 . . . . . . . . Tunneler 1 | 1 . . . . . . . . . Hauler 10 | . 2 . . . 5 1 2 . . Recycler 16 | 1 4 1 . . 4 3 . 3 . Mechanic 1 | . 1 . . . . . . . . Operator 3 | . . . . . 1 1 1 . . Swarmer 13 | . 9 3 . . 1 . . . . Grunt 16 | . 9 . . . 7 . . . . Sentry 7 | . . . . . 7 . . . . Specialist 1 | . . . . . 1 . . . . Hunter 2 | . . . . . 2 . . . . Best Kill Streak 8 | 2 8 3 . . 4 4 1 2 . Combat Bots Only 6 | . 6 3 . . 3 . . . . Max Kills in Single Turn 2 | 1 1 1 . . 2 1 1 1 . Gunslinging . | . . . . . . . . . . Exploded 1 | . . . . . 1 . . . . Melee . | . . . . . . . . . . Uniques/NPCs Destroyed . | . . . . . . . . . . Combat | -11 -10 -10 -10 -9 -8 -7 -7 -7 -7 -------- Run | Yrd Mat Min Exi Min Mat Fac Sto Rec Scr Hostile Shots Fired 358 | . 78 13 . . 80 11 11 . 165 Missed 135 | . 20 4 . . 20 7 9 . 75 Hits 223 | . 58 9 . . 60 4 2 . 90 Melee 2 | . . . . . . . . . 2 Projectile 221 | . 58 9 . . 60 4 2 . 88 Critical Strikes 2 | . . . . . . . . . 2 Damage Taken 3291 | . 632 69 . . 893 47 68 . 1582 Core 935 | . 163 17 . . 46 36 36 . 637 Absorbed by Shields . | . . . . . . . . . . Redirected to Shielding 16 | . 16 . . . . . . . . Regen/Repaired (Parts) 44 | . . . . . . . 44 . . Core Remaining (%) 73 | 100 . . . 28 91 . . . . Volleys Fired 191 | 4 90 10 . 1 85 . . . 1 Largest 2 | 2 2 2 . 2 2 . . . 1 Hottest 105 | 40 40 98 . 98 105 . . . 30 Shots Fired 378 | 8 180 20 . 2 167 . . . 1 Gun 293 | 8 180 . . . 105 . . . . Cannon 82 | . . 20 . 2 60 . . . . Launcher 3 | . . . . . 2 . . . 1 Special . | . . . . . . . . . . Kinetic 334 | 8 180 10 . 1 135 . . . . Thermal 41 | . . 10 . 1 30 . . . . Explosive 3 | . . . . . 2 . . . 1 Electromagnetic . | . . . . . . . . . . Robot Hit Streak 16 | 3 11 3 . 3 16 . . . . Robot Miss Streak 4 | 1 3 4 . . 4 . . . . Penetration Max . | . . . . . . . . . . Secondary Targets 3 | . 3 . . . . . . . . Max Gunslinging Chain 1 | . 1 . . . . . . . . Shots Hit Robots 263 | 6 119 8 . 2 112 6 5 3 2 Core Hits 110 | 4 50 4 . . 43 6 2 1 . Critical Kills 1 | . . . . . 1 . . . . Critical Parts Destroyed 1 | . 1 . . . . . . . . Critical Strikes 5 | . 1 . . . 4 . . . . Destroy 2 | . 1 . . . 1 . . . . Blast 3 | . . . . . 3 . . . . Melee Attacks 35 | . . . . . 2 16 9 4 4 Impact . | . . . . . . . . . . Slashing 35 | . . . . . 2 16 9 4 4 Piercing . | . . . . . . . . . . Sneak Attacks 12 | . . . . . . 5 4 3 . Combat Hostiles . | . . . . . . . . . . Follow-up Attacks . | . . . . . . . . . . Damage Inflicted 5208 | 55 1260 154 . 39 2237 527 526 298 112 Guns 2508 | 55 1253 . . . 1200 . . . . Cannons 1030 | . . 154 . 39 837 . . . . Explosions 151 | . . . . . 151 . . . . Melee 1463 | . . . . . . 527 526 298 112 Ramming 56 | . 7 . . . 49 . . . . Kinetic 2863 | 55 1253 73 . 18 1464 . . . . Thermal 675 | . . 81 . 21 573 . . . . Explosive 151 | . . . . . 151 . . . . Electromagnetic . | . . . . . . . . . . Impact . | . . . . . . . . . . Slashing 1463 | . . . . . . 527 526 298 112 Piercing . | . . . . . . . . . . Highest Corruption 1 | . 1 1 1 1 . . . . 1 Average Corruption 1 | . 1 1 1 1 . . . . 1 Corruption Purged . | . . . . . . . . . . Corruption Blocked . | . . . . . . . . . . Effects 13 | . 4 2 5 2 . . . . . Message Errors 4 | . 1 1 1 1 . . . . . Matter Fused 1 | . . . 1 . . . . . . Heat Flow Errors 3 | . 1 . 2 . . . . . . Energy Discharges 2 | . 1 1 . . . . . . . Data Loss (minor) 2 | . . . 1 1 . . . . . Data Loss (major) 1 | . 1 . . . . . . . . Overload Shots . | . . . . . . . . . . Overflow Damage 316 | . . 1 . . . . 172 143 . Projectiles 1 | . . 1 . . . . . . . Explosions . | . . . . . . . . . . Melee 315 | . . . . . . . 172 143 . Knockbacks 4 | . . . . 1 3 . . . . Impact 1 | . . . . . 1 . . . . Kinetic 3 | . . . . 1 2 . . . . Secondary . | . . . . . . . . . . Self-Inflicted Damage 31 | . . . . . 1 . . . 30 Shots 2 | . . . . . 1 . . . 1 Rammed 9 | . 2 . . . 7 . . . . Targets Rammed 10 | . 2 . . . 8 . . . . Kicked . | . . . . . . . . . . Crushed 1 | . . . . . 1 . . . . Highest Temperature 336 | . 238 336 104 42 5 17 51 . 91 Average Temperature 56 | . 34 148 54 23 3 9 21 . 52 Received Heat Transfer 848 | . 198 . . . 252 24 6 . 368 Effects 1 | . . 1 . . . . . . . Matter Decay 1 | . . 1 . . . . . . . Siege Activations . | . . . . . . . . . . Martial Activations . | . . . . . . . . . . Shielding Activations . | . . . . . . . . . . Robots Disrupted . | . . . . . . . . . . Combat Hostiles . | . . . . . . . . . . Robots Corrupted . | . . . . . . . . . . Combat Hostiles . | . . . . . . . . . . Parts Fried 1 | . 1 . . . . . . . . Impact Corruptions . | . . . . . . . . . . Robots Melted . | . . . . . . . . . . Combat Hostiles . | . . . . . . . . . . Parts Melted 2 | . . . . . 2 . . . . Heat Transferred 1221 | . . 148 . 37 1036 . . . . Parts Sabotaged . | . . . . . . . . . . Parts Stolen . | . . . . . . . . . . Parts Stripped . | . . . . . . . . . . Power Chain Reactions . | . . . . . . . . . . Alert | -11 -10 -10 -10 -9 -8 -7 -7 -7 -7 ------- Run | Yrd Mat Min Exi Min Mat Fac Sto Rec Scr Maximum Alert Level 1 | . . . . . . . 1 1 . Low Security (%) 98 | 100 100 100 . 100 100 100 99 63 . Level 1 1 | . . . . . . . . 36 . Level 2 . | . . . . . . . . . . Level 3 . | . . . . . . . . . . Level 4 . | . . . . . . . . . . Level 5 . | . . . . . . . . . . High Security . | . . . . . . . . . . Max Security . | . . . . . . . . . . Peak Influence 251 | 5 182 85 . . 188 189 219 251 . Initial 81 | . . 21 . . . 81 81 60 . Average 83 | 1 90 10 . . 114 103 101 145 . Influence Increases 2338 | 10 544 90 . . 819 218 401 256 . Destroy 0b10 Robot/C 1060 | . 360 60 . . 460 . 180 . . Destroy 0b10 Robot/NC 180 | 10 45 5 . . 60 30 15 15 . Destroy Leader 270 | . 64 10 . . 160 2 34 . . Allied During Kill 94 | . . . . . 27 . 67 . . Successful Hack 66 | . . . . . 24 14 28 . . Select Force Hacks 240 | . . . . . . . . 240 . Disable Machine 105 | . . 15 . . 45 30 15 . . Destroy Structure 38 | . . . . . 28 7 2 1 . Partial Spotted 60 | . . . . . . 30 30 . . Lose Combat Pursuer 225 | . 75 . . . 15 105 30 . . Influence Decreases 2338 | 10 488 109 37 . 640 218 426 174 236 Entered New Map 598 | . . 35 37 . . 98 98 94 236 Time Decay 1438 | 10 478 74 . . 580 110 106 80 . Lost Part 10 | . 10 . . . . . . . . Lost Ally 292 | . . . . . 60 10 222 . . Squads Dispatched 10 | . 3 . . . 3 . 4 . . Investigation 3 | . 2 . . . . . 1 . . Extermination 1 | . . . . . . . 1 . . Reinforcement 5 | . 1 . . . 2 . 2 . . Assault . | . . . . . . . . . . Garrison 1 | . . . . . 1 . . . . Intercept . | . . . . . . . . . . Searches Triggered . | . . . . . . . . . . Construction Impeded . | . . . . . . . . . . Haulers Reinforced 1 | . . . . . . . 1 . . Active Scanning Responses . | . . . . . . . . . . Cargo Convoy Interrupts . | . . . . . . . . . . Stealth | -11 -10 -10 -10 -9 -8 -7 -7 -7 -7 --------- Run | Yrd Mat Min Exi Min Mat Fac Sto Rec Scr Distress Signals 12 | . 4 . . . 4 1 3 . . Communications Jammed . | . . . . . . . . . . Distress Signals . | . . . . . . . . . . Times Spotted 145 | . 43 3 . . 44 12 10 . 33 Peak Tracking Total 29 | . 7 3 . . 6 10 7 . 29 Tactical Retreats 9 | . 3 . . . 1 3 1 . 1 Traps | -11 -10 -10 -10 -9 -8 -7 -7 -7 -7 ------- Run | Yrd Mat Min Exi Min Mat Fac Sto Rec Scr Traps Triggered 7 | . 4 . . . 1 . 2 . . Indirectly . | . . . . . . . . . . Trap Hack Attempts . | . . . . . . . . . . Triggered . | . . . . . . . . . . Disarmed . | . . . . . . . . . . Reprogrammed . | . . . . . . . . . . Reused . | . . . . . . . . . . Traps Extracted . | . . . . . . . . . . Installed . | . . . . . . . . . . Triggered . | . . . . . . . . . . Machines | -11 -10 -10 -10 -9 -8 -7 -7 -7 -7 ---------- Run | Yrd Mat Min Exi Min Mat Fac Sto Rec Scr Machines Disabled 9 | . . 1 . . 3 2 1 . 2 Max in Single Turn 2 | . . 1 . . 2 1 1 . 2 Garrison Access 1 | . . . . . 1 . . . . Machines Repaired . | . . . . . . . . . . Machines Dismantled . | . . . . . . . . . . Machines Sabotaged . | . . . . . . . . . . Overloaded Fab Kills . | . . . . . . . . . . Hacking | -11 -10 -10 -10 -9 -8 -7 -7 -7 -7 --------- Run | Yrd Mat Min Exi Min Mat Fac Sto Rec Scr Machines Accessed 25 | . . 1 2 . 2 3 6 9 2 Terminals 9 | . . . . . . 3 5 1 . Fabricators . | . . . . . . . . . . Repair Stations 1 | . . . . . . . 1 . . Recycling Units 8 | . . . . . . . . 8 . Scanalyzers 1 | . . . . . 1 . . . . Garrison Access 1 | . . . . . 1 . . . . Total Hacks 48 | . . 1 2 . 4 6 15 11 9 Successful 32 | . . 1 2 . 3 2 6 9 9 Failed 16 | . . . . . 1 4 9 2 . Catastrophic 3 | . . . . . . 2 1 . . Database Lockouts . | . . . . . . . . . . Manual 17 | . . . 1 . . 5 1 10 . Terminals 18 | . . . . . . 6 11 1 . Fabricators . | . . . . . . . . . . Repair Stations 4 | . . . . . . . 4 . . Recycling Units 10 | . . . . . . . . 10 . Scanalyzers 3 | . . . . . 3 . . . . Garrison Access 1 | . . . . . 1 . . . . Terminal Hacks 18 | . . 1 2 . . 1 4 1 9 Record 10 | . . . 1 . . . . . 9 Robot Analysis 1 | . . . . . . 1 . . . Open Door 4 | . . 1 . . . . 3 . . Branch Access Points 1 | . . . . . . . 1 . . Alert Level 1 | . . . . . . . . 1 . Proto ID Catalog 1 | . . . 1 . . . . . . Fabricator Hacks . | . . . . . . . . . . Repair Station Hacks 2 | . . . . . . . 2 . . Scan Component 1 | . . . . . . . 1 . . Repair 1 | . . . . . . . 1 . . Recycling Unit Hacks . | . . . . . . . . . . Scanalyzer 2 | . . . . . 2 . . . . Retrieve Study 2 | . . . . . 2 . . . . Garrison Access Hacks 1 | . . . . . 1 . . . . Seal Access 1 | . . . . . 1 . . . . Unauthorized Hacks 9 | . . . . . . 1 . 8 . Terminals 1 | . . . . . . 1 . . . Assimilate 1 | . . . . . . 1 . . . Fabricators . | . . . . . . . . . . Repair Stations . | . . . . . . . . . . Recycling Units 8 | . . . . . . . . 8 . Tunnel 8 | . . . . . . . . 8 . Scanalyzers . | . . . . . . . . . . Garrison Access . | . . . . . . . . . . Data Cores Recovered . | . . . . . . . . . . Used . | . . . . . . . . . . Hacking Detections 10 | . . . . . 1 1 7 1 . Full Trace Events . | . . . . . . . . . . Feedback Events . | . . . . . . . . . . Feedback Blocked . | . . . . . . . . . . Robot Schematics Acquired . | . . . . . . . . . . Robots Built . | . . . . . . . . . . Authchips . | . . . . . . . . . . Time . | . . . . . . . . . . Total Robot Build Rating . | . . . . . . . . . . Part Schematics Acquired . | . . . . . . . . . . Parts Built . | . . . . . . . . . . Authchips . | . . . . . . . . . . Time . | . . . . . . . . . . Total Part Build Rating . | . . . . . . . . . . Part Studies Acquired 2 | . . . . . 2 . . . . Parts Repaired 1 | . . . . . . . 1 . . Time 19 | . . . . . . . 19 . . Parts Recycled . | . . . . . . . . . . Recycled Matter . | . . . . . . . . . . Retrieved Matter . | . . . . . . . . . . Retrieved Components . | . . . . . . . . . . Parts Scanalyzed . | . . . . . . . . . . Part Schematics Acquired . | . . . . . . . . . . Parts Damaged . | . . . . . . . . . . Bothacking | -11 -10 -10 -10 -9 -8 -7 -7 -7 -7 ------------ Run | Yrd Mat Min Exi Min Mat Fac Sto Rec Scr Used RIF Installer . | . . . . . . . . . . Robots Hacked . | . . . . . . . . . . Non-combat . | . . . . . . . . . . Combat . | . . . . . . . . . . Robot Hacks Applied . | . . . . . . . . . . Relay Couplers Released . | . . . . . . . . . . Fabnet Peak Effective % . | . . . . . . . . . . Robots Rewired . | . . . . . . . . . . Allies Hacked . | . . . . . . . . . . Hacks Repelled . | . . . . . . . . . . Allies | -11 -10 -10 -10 -9 -8 -7 -7 -7 -7 -------- Run | Yrd Mat Min Exi Min Mat Fac Sto Rec Scr Total Allies 13 | . . . . 3 . . 10 . . Largest Group 10 | . . . . 3 3 . 10 . . Highest-Rated Group 173 | . . . . 40 40 . 173 . . Highest-Rated Ally 29 | . . . . 16 16 . 29 . . Total Orders 4 | . . . . . . 1 3 . . EXPLORE 3 | . . . . . . 1 2 . . RETURN 1 | . . . . . . . 1 . . Ally Attacks 95 | . . . . . 27 . 68 . . Total Damage 1150 | . . . . . 249 . 901 . . Kills 14 | . . . . . 5 . 9 . . Allies Corrupted 2 | . . . . . . . 2 . . Allies Melted . | . . . . . . . . . . Intel | -11 -10 -10 -10 -9 -8 -7 -7 -7 -7 ------- Run | Yrd Mat Min Exi Min Mat Fac Sto Rec Scr Active Infowar (turns) 5531 | 45 1246 761 400 332 1953 221 242 172 159 Sensors 675 | . . . . . . 153 192 172 158 Seismic 4749 | 45 1246 761 400 332 1953 12 . . . Machine Analysis 800 | . . . . . 6 221 242 172 159 Robot Analysis Total 1 | . . . . . . 1 . . . Derelict Logs Recovered 1 | . . 1 . . . . . . . Drone Launches 22 | . . . . . . 1 21 . . Drone Recoveries 7 | . . . . . . . 7 . . Exploration | -11 -10 -10 -10 -9 -8 -7 -7 -7 -7 ------------- Run | Yrd Mat Min Exi Min Mat Fac Sto Rec Scr Turns Passed 5722 | 99 1338 762 400 332 1953 221 242 172 203 Spaces Moved 4957 | 50 643 452 248 201 942 593 506 631 691 Core 5 | 3 . . . . . . . . 2 Treads 2530 | 47 643 452 248 201 939 . . . . Legs . | . . . . . . . . . . Wheels . | . . . . . . . . . . Hover . | . . . . . . . . . . Flight 2422 | . . . . . 3 593 506 631 689 Fastest Speed 24 | 50 160 160 160 160 31 27 24 26 26 Average Speed 94 | 153 160 160 160 160 158 27 24 26 26 Slowest Speed 240 | 160 160 160 160 160 240 28 29 26 50 Overloaded Moves . | . . . . . . . . . . Propulsion Burnouts . | . . . . . . . . . . Robots Hopped 12 | . . . . . . . 1 . 11 Potential Cave-ins . | . . . . . . . . . . Cave-ins Triggered . | . . . . . . . . . . Exploration Rate (%) 61 | 4 90 90 60 58 78 30 69 79 59 Regions Visited 9 Branch Regions 6 Pre-discovered Areas 13 | . . 1 1 . . . . 8 3 Known Exits Taken 3 | . . . . . . 1 1 1 . Unknown Exits Taken 6 | 1 1 1 1 1 1 . . . . Scrap Searched 10 | . . 3 . 3 . . . . 4 Spaces Dug 13 | . . . . . 2 7 2 1 1 Terrain Destroyed 39 | . . . . . 22 7 2 1 7 Melee 13 | . . . . . 2 7 2 1 1 Projectile 2 | . . . . . 2 . . . . AOE 24 | . . . . . 18 . . . 6 Terrain Rammed . | . . . . . . . . . . Walls Destroyed . | . . . . . . . . . . Machines Disabled . | . . . . . . . . . . Actions | -11 -10 -10 -10 -9 -8 -7 -7 -7 -7 --------- Run | Yrd Mat Min Exi Min Mat Fac Sto Rec Scr Total 5633 | 62 791 472 253 210 1272 633 613 634 693 Wait 228 | . 26 . . 7 127 7 61 . . Move 4927 | 49 642 451 247 200 941 592 503 630 672 Hop 9 | . . . . . . . 1 . 8 Pick Up 47 | 2 16 2 3 1 17 5 1 . . Fast Attach 19 | 7 . . . . 4 1 5 . 2 Attach 21 | . 4 1 . . 12 3 . . 1 Detach 6 | . 3 . . . 1 1 . . 1 Swap 57 | . 4 4 . . 38 4 5 . 2 Drop 63 | . 4 4 3 1 37 4 8 . 2 Fire 191 | 4 90 10 . 1 85 . . . 1 Melee 35 | . . . . . 2 16 9 4 4 Ram . | . . . . . . . . . . Kick . | . . . . . . . . . . Crush 10 | . 2 . . . 8 . . . . Escape Stasis 9 | . . . . . . . 9 . . Rewire 4 | . . . . . . . 4 . . Trap . | . . . . . . . . . . Miscellaneous 7 | . . . . . . . 7 . . Route ------- -11/Scrapyard -10/Materials (discovered 5 exits: [*Mat x3] / *Min x2) -10/Mines (discovered 3 exits: [*Mat] / *Exi / Sub) -10/Exiles -9/Mines -8/Materials (discovered 2 exits: *Fac x2) -7/Factory (discovered 4 exits: [*Fac] / *Sto / *Low x2) -7/Storage -7/Recycling (discovered 2 exits: *Fac / *Scr) -7/Scraptown (discovered 1 exit: *Fac) History --------- Turn | Location | Event 73 | -11/Scrapyard | Discovered new exit (range 12) 100 | -11/Scrapyard | Entered Materials 304 | -10/Materials | Build established: Mutant 339 | -10/Materials | Discovered new exit (range 9) 468 | -10/Materials | Discovered new exit (range 6) 556 | -10/Materials | Core integrity fell below 50% 631 | -10/Materials | Discovered new exit (range 9) 663 | -10/Materials | Discovered new exit (range 16) 1271 | -10/Materials | Discovered new exit (range 16) 1438 | -10/Materials | Entered Mines 1448 | -10/Mines | Met a Derelict bent on vengeance 1453 | -10/Mines | Identified exit to Subcaves 1511 | -10/Mines | Learned location of Storage (-7) 1723 | -10/Mines | Found the Drone Emporium 1728 | -10/Mines | Found Prototype Device 1728 | -10/Mines | Identified Thief Drone Bay 1764 | -10/Mines | Discovered new exit (range 14) 2038 | -10/Mines | Deemed a non-threat by the Exiles lab entrance 2040 | -10/Mines | Discovered new exit (range 5) 2200 | -10/Mines | Entered Exiles 2239 | -10/Exiles | Met 8R-AWN 2268 | -10/Exiles | Met EX-HEX 2330 | -10/Exiles | Met EX-DEC 2336 | -10/Exiles | Learned location of Zion (-7) 2364 | -10/Exiles | Met EX-BIN 2386 | -10/Exiles | Aligned with FarCom system 2388 | -10/Exiles | Given EX-Vault access code 2428 | -10/Exiles | Opened EX-Vault 2438 | -10/Exiles | Found Trap Reconfigurator 2443 | -10/Exiles | Found Longsword +1 2450 | -10/Exiles | Found Supersonic Drone Bay 2482 | -10/Exiles | Warned to stay clear of 0b10 Research branches 2587 | -10/Exiles | Discovered new exit (range 10) 2600 | -10/Exiles | Stole three prototypes: Trap Reconfigurator, Supersonic Drone Bay, Longsword +1 2600 | -10/Exiles | Entered Mines 2837 | -9/Mines | Assisted by bots powering up and referring to "LRC-V3" 2874 | -9/Mines | Discovered new exit (range 5) 2932 | -9/Mines | Entered Materials 2932 | -8/Materials | Accompanied by 3 allies 2932 | -8/Materials | Evolved 4 slots: Propulsion x2, Utility x2 3040 | -8/Materials | Garrison activated, responded to threat 3318 | -8/Materials | Build established: Scavenger-Mutant 4137 | -8/Materials | Discovered new exit (range 7) 4790 | -8/Materials | Discovered new exit (range 13) 4885 | -8/Materials | Entered Factory 4885 | -7/Factory | Evolved 2 slots: Propulsion x1, Utility x1 4887 | -7/Factory | FarCom data flow suspended 4904 | -7/Factory | Discovered new exit (range 5) 4905 | -7/Factory | Identified exit to Lower Caves 4986 | -7/Factory | Discovered exit to Lower Caves (range 108) 4991 | -7/Factory | Discovered new exit (range 167) 4991 | -7/Factory | Discovered new exit (range 177) 5105 | -7/Factory | Identified exit to Storage 5106 | -7/Factory | Entered Storage 5197 | -7/Storage | Identified exit to Recycling 5201 | -7/Storage | Assisted by bots powering up and referring to "LRC-V3" 5256 | -7/Storage | Lost 13 allies 5267 | -7/Storage | Used back door to open Recycling access 5339 | -7/Storage | Repaired Lgt. Nuclear Core+ 5348 | -7/Storage | Entered Recycling 5353 | -7/Recycling | Scanned before Scraplab entrance 5357 | -7/Recycling | Entered Scraplab 5359 | -7/Recycling | Discovered new exit (range 2) 5359 | -7/Recycling | Identified exit to Scraptown 5372 | -7/Recycling | Lost 3 allies 5446 | -7/Recycling | Discovered new exit (range 5) 5520 | -7/Recycling | Entered Scraptown 5570 | -7/Scraptown | Build established: Scout 5571 | -7/Scraptown | Discovered new exit (range 5) 5593 | -7/Scraptown | Visited Fellowship of the Rings 5599 | -7/Scraptown | Visited Awakened 5606 | -7/Scraptown | Learned location of Extension (-6) 5636 | -7/Scraptown | Visited Symbiants 5645 | -7/Scraptown | Turned away by UFD registrar 5650 | -7/Scraptown | Visited Cyclists 5657 | -7/Scraptown | Attacked by Scraptown defenders 5660 | -7/Scraptown | Entered Cyclist Reading Room 5675 | -7/Scraptown | Identified exit to Factory 5701 | -7/Scraptown | Core integrity fell below 50% 5708 | -7/Scraptown | Visited Scrap Suit Storage 5715 | -7/Scraptown | Core integrity fell below 20% 5723 | -7/Scraptown | Destroyed by NY-FTV(p) with EM Pulse Gun Last Messages --------------- 05701_ Knocked back. 05701_ Penetrated by Siege Slug. 05702_ Penetrated by Bolt. 05703_ Penetrated by Siege Slug. 05703_ Mak. Microdissipator Network destroyed. 05703_ Imp. Cesium-ion Thruster destroyed. 05703_ Knocked back. 05714_ Machine disabled. 05714_ SS Performance Data disabled. 05715_ Bolt penetrates Machine. 05718_ Bolt penetrates Wall. 05719_ Bolt penetrates Machine. 05719_ Imp. Cesium-ion Thruster destroyed. 05719_ Dropped Imp. Utility Shielding. 05720_ Acquired Imp. Utility Shielding. 05721_ Penetrated by Bolt. 05721_ Imp. Flight Unit destroyed. 05721_ Penetrated by Bolt. 05721_ Dropped Sml. Storage Unit. 05722_ Mni. Grenade Launcher+ destroyed. Map ----- +----------------------------------------------------+ | #????????????????????????????????????????? | | #????????????????????????????????????????? | | #????????" ???????????????????????????? | | #???????? "?????????????????????????? | | #???????" "?????????????????????????? | | #???????" ""????????????????????????? | | #???????" ""????????????????????????? | | "???????" ""????????????????????????? | | ###?????" ""#???????????????????????? | | "#"#???" ""#???????????????????????? | | """"#???" ""#???????????????????????? | | ""###???#" "" ??????????????????????? | | ###?????#" "" ??????????????????????? | | #########" ""#???????????????????????? | | ""#???????????????????????? | | % j ""#???????????????????????? | | """" ""#???????????????????????? | | "??" TTp ""#?????r?????????????????? | | "??" TT ""######j ##??????????????? | | "??" g h """"""""""""??????????????? | | % "??" j """"""""""""""""??????????? | | % "??" p ?????????? | | "??" j ?????????? | | "??" ????????? | | #"??"#" x ????????? | | #????#" pr @ ????????? | | #????#""""""h""""""""""" ""???????????? | | # ### ####????#######r##########???????????????? | | # #??????????# #????????????????????? | | "# #??????????## ##????????????????????? | | ""# #??????????#" !"#????????????????????? | | ""# #??????????#"! !"#????????????????????? | | ""# #??????????#" !"#????????????????????? | | ""# #??????????#"! !"#????????????????????? | | ""# #??????????#"! !"#????????????????????? | | """"# #??????????### ##????????????????????? | | """"# #??????????# "#????????????????????? | | ##### #??????????# " !"#????????????????????? | | ????# #??????????# ###????????????????????? | | ##### #??????????########??????????????????????? | | """"" #????????????????????????????????????????? | | """"" #????????????????????????????????????????? | | " "" #????????????????????????????????????????? | | #????????????????????????????????????????? | | "" " #????????????????????????????????????????? | | """"" #????????????????????????????????????????? | | """"" #????????????????????????????????????????? | | ##### #????????????????????????????????????????? | | ##### #????????????????????????????????????????? | | """"# #????????????????????????????????????????? | +----------------------------------------------------+ Best States ------------- Heat Dissipation 45 Energy Generation 18 Energy Capacity 280 Matter Stores 300 Matter Capacity 300 Sight Range 16 Robot Scan Range 15 Terrain Scan Density 10 Armor Coverage 150 Core Shielding 20 Evasion (%) 65 Recoil Reduction 4 Offensive Hacking 10 Item Schematics ----------------- None Robot Schematics ------------------ None Fabricated ------------ Nothing Repaired ---------- Lgt. Nuclear Core | 12% | -7/Storage Studied --------- Mni. Grenade Launcher | -8/Materials | Hacked Lgt. Nuclear Core | -8/Materials | Hacked Alien Tech Used ----------------- None Achievements -------------- Morally Flexible Challenges ------------ None Game ------ Seed SystemPointMask Manual? 0 Play Time 00:52:35 Cumulative 74.0 hours Start 2026.07.02 @ 11:43:03 End 2026.07.02 @ 12:40:32 Sessions 1 Manual Loads 0 Difficulty Rogue Special Mode None Game No. 39 Rogue 39 Adventurer 0 Explorer 0 Win Type - Total 3 Types 1/0/1/0/0/0/0/1/0/0 Lore% 59 Gallery% 52 Achievement% 46 Wizard Run 0 Options --------- Layout 1 ASCII 0 Keyboard 1 Movement Arrows Keybinds 0 Fullscreen 2 Font 24/Smallcaps Map View 50x35 Zoom Use 0% Tactical HUD 1 Map Filters NONE Filters NONE Steam 1 RUN: 6f57531d-5aa9-4524-b513-244da02b9839